bitfinex/quotes_BTCUSD_20240811
["timestamp","ask_amount","ask_price","bid_price","bid_amount"]
[1723403053501,0.0083,60346.0,60345.0,1.90516041]
[1723403054125,0.0083,60346.0,60345.0,1.65316141]
[1723403055566,0.0083,60346.0,60345.0,1.56380032]
[1723403055719,0.0083,60346.0,60345.0,1.36704363]
[1723403056122,0.0083,60346.0,60345.0,1.29261198]
[1723403056689,0.0083,60346.0,60345.0,1.36704363]
[1723403057106,0.0083,60346.0,60345.0,1.36705354]
[1723403057560,0.0854,60346.0,60345.0,0.37032661]
[1723403057762,0.261897,60346.0,60345.0,0.30153702]
[1723403058100,0.1459,60346.0,60345.0,0.19181492]
[1723403058501,0.261897,60346.0,60345.0,0.19181492]
[1723403058962,0.1459,60346.0,60345.0,0.17781492]
[1723403059159,0.1459,60346.0,60345.0,0.16781492]
[1723403059310,0.1459,60346.0,60345.0,0.18181492]
[1723403059517,0.261897,60346.0,60345.0,0.17781492]
[1723403059671,0.261897,60346.0,60345.0,0.18181492]
[1723403059882,0.261897,60346.0,60345.0,0.16781492]
[1723403060074,0.261897,60346.0,60345.0,0.16681492]
[1723403060320,0.261897,60346.0,60345.0,0.17181492]
[1723403060526,0.1459,60346.0,60345.0,0.17181492]
[1723403060700,0.1459,60346.0,60345.0,0.16881492]
[1723403060908,0.1459,60346.0,60345.0,0.17181492]
[1723403061809,0.1459,60346.0,60345.0,0.16681492]
[1723403062217,0.1459,60346.0,60345.0,0.17181492]
[1723403062475,0.1459,60346.0,60345.0,0.16681492]
[1723403062889,0.1459,60346.0,60345.0,0.28781392]
[1723403063425,0.1459,60346.0,60345.0,0.17181492]
[1723403066901,0.0083,60346.0,60345.0,0.28781392]
[1723403067058,0.0083,60346.0,60345.0,0.28481392]
[1723403067260,0.0083,60346.0,60345.0,0.28781392]
[1723403067491,0.0083,60346.0,60345.0,0.17181492]
[1723403067893,0.0083,60346.0,60345.0,0.16881492]
[1723403068251,0.0083,60346.0,60345.0,0.74881192]
[1723403068478,0.0083,60346.0,60345.0,0.75381192]
[1723403068720,0.0083,60346.0,60345.0,0.74881192]
[1723403069122,0.0083,60346.0,60345.0,0.75581192]
[1723403069344,0.0083,60346.0,60345.0,0.52381292]
[1723403069756,0.0083,60346.0,60345.0,0.63597319]
[1723403069958,0.0083,60346.0,60345.0,0.86797219]
[1723403070390,0.0083,60346.0,60345.0,0.94617219]
[1723403070591,0.0083,60346.0,60345.0,0.86797219]
[1723403072658,0.1493,60346.0,60345.0,0.28797519]
[1723403072863,0.1493,60346.0,60345.0,0.40397419]
[1723403073069,0.0697,60346.0,60345.0,0.63597319]
[1723403073274,0.0697,60346.0,60345.0,0.86797219]
[1723403073895,0.0697,60346.0,60345.0,0.63597319]
[1723403074763,0.0697,60346.0,60345.0,0.52381292]
[1723403074967,0.0697,60346.0,60345.0,0.63646899]
[1723403076513,0.0083,60346.0,60345.0,1.01616799]
[1723403076740,0.0083,60346.0,60345.0,0.95106799]
[1723403078281,0.0083,60346.0,60345.0,0.83841192]
[1723403078588,0.0083,60346.0,60345.0,0.95107663]
[1723403080290,0.0083,60346.0,60345.0,0.95113351]
[1723403080493,0.0033,60346.0,60345.0,0.95113351]
[1723403081384,0.0829,60346.0,60345.0,0.40453551]
[1723403081585,0.1443,60346.0,60345.0,0.63653451]
[1723403082002,0.1443,60346.0,60345.0,0.63655595]
[1723403083793,0.0033,60346.0,60345.0,0.86855495]
[1723403084828,0.0033,60346.0,60345.0,0.63655595]
[1723403086652,0.0033,60346.0,60345.0,0.40455695]
[1723403086871,0.0033,60346.0,60345.0,0.63655595]
[1723403089139,0.0033,60346.0,60345.0,0.52381292]
[1723403089346,0.0033,60346.0,60345.0,0.63677439]
[1723403089558,0.0033,60346.0,60345.0,0.52381292]
[1723403089764,0.0033,60346.0,60345.0,0.63677439]
[1723403089983,0.0033,60346.0,60345.0,0.28877639]
[1723403090194,0.1606,60346.0,60345.0,0.28877639]
[1723403090880,0.338297,60346.0,60345.0,0.28877639]
[1723403092072,0.338297,60346.0,60345.0,0.12496147]
[1723403092965,0.283597,60346.0,60345.0,0.012]
[1723403093178,0.283597,60346.0,60345.0,0.12502512]
[1723403094080,0.979582,60346.0,60345.0,0.012]
[1723403094289,1.02068196,60346.0,60345.0,0.012]
[1723403094492,1.52540394,60346.0,60345.0,0.012]
[1723403094706,1.71397651,60346.0,60345.0,0.012]
[1723403094911,1.67631817,60346.0,60345.0,0.012]
[1723403095119,1.77534876,60346.0,60345.0,0.012]
[1723403095325,1.67631817,60346.0,60345.0,0.005]
[1723403095534,1.7386689,60346.0,60345.0,0.005]
[1723403095745,1.7386689,60346.0,60345.0,0.001]
[1723403095955,0.842035,60342.0,60341.0,0.000913]
[1723403096250,1.18911816,60342.0,60341.0,0.000913]
[1723403096433,1.08976922,60342.0,60341.0,0.000913]
[1723403097090,1.26018018,60342.0,60341.0,0.000913]
[1723403097519,1.49214136,60342.0,60341.0,0.000913]
[1723403097932,1.61204136,60342.0,60341.0,0.000913]
[1723403098359,1.80395062,60342.0,60341.0,0.001913]
[1723403098568,1.80395062,60342.0,60341.0,0.002913]
[1723403098801,1.90091463,60342.0,60341.0,0.001913]
[1723403099011,1.90291463,60342.0,60341.0,0.002913]
[1723403099226,1.90291463,60342.0,60341.0,0.001913]
[1723403099638,1.90091463,60342.0,60341.0,0.000913]
[1723403099844,1.90149478,60342.0,60341.0,0.000913]
[1723403100262,1.77252393,60342.0,60341.0,0.000913]
[1723403100464,1.90152547,60342.0,60341.0,0.000913]
[1723403100777,1.90152547,60342.0,60341.0,0.001913]
[1723403100983,1.90252547,60342.0,60341.0,0.002913]
[1723403101610,1.80356146,60342.0,60341.0,0.002913]
[1723403102380,1.8778091,60342.0,60341.0,0.002913]
[1723403102533,1.78079409,60342.0,60341.0,0.002913]
[1723403102740,1.78079408,60342.0,60341.0,0.002913]
[1723403103053,1.87780995,60342.0,60341.0,0.002913]
[1723403103426,1.80379408,60342.0,60341.0,0.002913]
[1723403104639,1.72969197,60342.0,60341.0,0.002913]
[1723403105356,1.77906943,60342.0,60341.0,0.002913]
[1723403105585,1.72969197,60342.0,60341.0,0.002913]
[1723403105993,1.69755992,60342.0,60341.0,0.002913]
[1723403106163,1.72967374,60342.0,60341.0,0.002913]
[1723403109347,2.12643994,60342.0,60341.0,0.002913]
[1723403109546,2.30103994,60342.0,60341.0,0.002913]
[1723403109746,2.12643994,60342.0,60341.0,0.002913]
[1723403109928,2.09432612,60342.0,60341.0,0.002913]
[1723403110134,2.12647621,60342.0,60341.0,0.002913]
[1723403110495,1.93966129,60342.0,60341.0,0.002913]
[1723403110827,2.10347621,60342.0,60341.0,0.002913]
[1723403111068,2.12647621,60342.0,60341.0,0.002913]
[1723403111304,1.074063,60341.0,60340.0,0.000913]
[1723403111576,1.43142801,60341.0,60340.0,0.000913]
[1723403111985,1.53142801,60341.0,60340.0,0.000913]
[1723403112774,1.53242801,60341.0,60340.0,0.001913]
[1723403113211,1.5323827,60341.0,60340.0,0.001913]
[1723403114418,1.64061938,60341.0,60340.0,0.002913]
[1723403115493,2.03738558,60341.0,60340.0,0.002913]
[1723403115797,2.26939958,60341.0,60340.0,0.002913]
[1723403116675,2.26935376,60341.0,60340.0,0.002913]
[1723403118415,2.02733976,60341.0,60340.0,0.002913]
[1723403118615,2.03733976,60341.0,60340.0,0.002913]
[1723403119534,0.812199,60330.0,60329.0,0.077139]
[1723403119960,0.892099,60330.0,60329.0,0.077139]
[1723403120994,0.892099,60330.0,60329.0,0.078139]
[1723403121363,0.892099,60330.0,60329.0,0.080139]
[1723403122432,0.5802,60324.0,60323.0,0.0619]
[1723403122549,0.5802,60324.0,60323.0,0.1393]
[1723403122550,0.6601,60324.0,60323.0,0.1393]
[1723403124618,0.69249548,60324.0,60323.0,0.1393]
[1723403124826,0.580217,60322.0,60321.0,0.000913]
[1723403125027,0.84469948,60322.0,60321.0,0.000913]
[1723403125442,1.20536965,60322.0,60321.0,0.000913]
[1723403125650,1.65964352,60322.0,60321.0,0.000913]
[1723403125852,1.69773457,60322.0,60321.0,0.000913]
[1723403126274,1.69773457,60322.0,60321.0,0.005913]
[1723403126479,1.5991514,60322.0,60321.0,0.000913]
[1723403126698,1.69790201,60322.0,60321.0,0.000913]
[1723403126906,1.71190201,60322.0,60321.0,0.001913]
[1723403127105,1.49210592,60322.0,60321.0,0.001913]
[1723403127307,1.71035673,60322.0,60321.0,0.001913]
[1723403127761,1.71035673,60322.0,60321.0,0.005913]
[1723403127936,1.91025673,60322.0,60321.0,0.005913]
[1723403128135,1.89025673,60322.0,60321.0,0.001913]
[1723403128364,1.75512856,60322.0,60321.0,0.001913]
[1723403128532,1.81615818,60322.0,60321.0,0.002913]
[1723403128950,1.83615818,60322.0,60321.0,0.002913]
[1723403129359,1.88662747,60322.0,60321.0,0.002913]
[1723403130242,2.28339367,60322.0,60321.0,0.002913]
[1723403130809,2.29326388,60322.0,60321.0,0.002913]
[1723403131535,2.38611117,60322.0,60321.0,0.002913]
[1723403132353,2.34996622,60322.0,60321.0,0.002913]
[1723403132710,2.34921436,60322.0,60321.0,0.002913]
[1723403132844,2.31553561,60322.0,60321.0,0.002913]
[1723403133045,2.06777256,60322.0,60321.0,0.002913]
[1723403133297,2.06777256,60322.0,60321.0,0.145113]
[1723403133298,1.80042904,60322.0,60321.0,0.145113]
[1723403133666,1.80042904,60322.0,60321.0,0.002913]
[1723403133868,1.81042904,60322.0,60321.0,0.002913]
[1723403134303,1.90803781,60322.0,60321.0,0.002913]
[1723403134961,1.97403781,60322.0,60321.0,0.002913]
[1723403135573,1.90816791,60322.0,60321.0,0.002913]
[1723403135746,1.89816791,60322.0,60321.0,0.002913]
[1723403135944,1.81042904,60322.0,60321.0,0.002913]
[1723403136149,1.41366284,60322.0,60321.0,0.002913]
[1723403136452,1.40366284,60322.0,60321.0,0.002913]
[1723403136881,1.41366284,60322.0,60321.0,0.002913]
[1723403137744,1.51140064,60322.0,60321.0,0.002913]
[1723403137956,1.41361529,60322.0,60321.0,0.002913]
[1723403138602,1.51132595,60322.0,60321.0,0.002913]
[1723403138820,1.41361529,60322.0,60321.0,0.002913]
[1723403139185,1.51132632,60322.0,60321.0,0.002913]
[1723403139391,1.51132643,60322.0,60321.0,0.002913]
[1723403139587,1.36084219,60322.0,60321.0,0.002913]
[1723403139811,1.56074219,60322.0,60321.0,0.002913]
[1723403139992,1.41361529,60322.0,60321.0,0.002913]
[1723403140599,1.46309792,60322.0,60321.0,0.002913]
[1723403140957,1.41361529,60322.0,60321.0,0.002913]
[1723403141257,1.41361529,60322.0,60321.0,0.084613]
[1723403141559,1.381291,60322.0,60321.0,0.084613]
[1723403141745,1.41358656,60322.0,60321.0,0.084613]
[1723403142076,1.81035276,60322.0,60321.0,0.084613]
[1723403142902,1.81035276,60322.0,60321.0,0.002913]
[1723403143533,1.81037757,60322.0,60321.0,0.002913]
[1723403144147,1.8598602,60322.0,60321.0,0.002913]
[1723403144406,1.90831047,60322.0,60321.0,0.002913]
[1723403145215,1.90839629,60322.0,60321.0,0.002913]
[1723403145649,1.98262171,60322.0,60321.0,0.002913]
[1723403145861,1.90839629,60322.0,60321.0,0.002913]
[1723403146291,2.16643663,60322.0,60321.0,0.002913]
[1723403146507,2.33833663,60322.0,60321.0,0.002913]
[1723403148240,2.33849,60322.0,60321.0,0.002913]
[1723403149966,2.26907556,60322.0,60321.0,0.002913]
[1723403151616,2.26907556,60322.0,60319.0,0.000913]
[1723403151617,0.842332,60320.0,60319.0,0.000913]
[1723403151832,1.57949583,60320.0,60319.0,0.000913]
[1723403152040,1.75969826,60320.0,60319.0,0.000913]
[1723403152298,1.77448245,60320.0,60319.0,0.000913]
[1723403152523,1.99016696,60320.0,60319.0,0.000913]
[1723403152937,1.99077637,60320.0,60319.0,0.000913]
[1723403153106,2.12460076,60320.0,60319.0,0.000913]
[1723403153923,2.13860076,60320.0,60319.0,0.001913]
[1723403154064,1.98640576,60320.0,60319.0,0.001913]
[1723403154267,1.90610576,60320.0,60319.0,0.001913]
[1723403154474,1.92010576,60320.0,60319.0,0.002913]
[1723403154884,2.15220076,60320.0,60319.0,0.002913]
[1723403155754,2.15187154,60320.0,60319.0,0.002913]
[1723403155932,2.27187154,60320.0,60319.0,0.002913]
[1723403157415,2.66863774,60320.0,60319.0,0.002913]
[1723403157843,1.85462782,60320.0,60319.0,0.143713]
[1723403158062,1.65049086,60320.0,60319.0,0.143713]
[1723403158399,1.36795734,60320.0,60319.0,0.143713]
[1723403159427,1.36797841,60320.0,60319.0,0.143713]
[1723403159605,1.46797841,60320.0,60319.0,0.143713]
[1723403162203,1.36942911,60320.0,60319.0,0.143713]
[1723403162407,1.46722777,60320.0,60319.0,0.143713]
[1723403162630,1.43489686,60320.0,60319.0,0.143713]
[1723403162885,1.46685618,60320.0,60319.0,0.143713]
[1723403163101,1.4667724,60320.0,60319.0,0.143713]
[1723403163287,1.0700062,60320.0,60319.0,0.143713]
[1723403164208,1.06999496,60320.0,60319.0,0.143713]
[1723403165162,1.119479,60320.0,60319.0,0.143713]
[1723403165983,1.06999496,60320.0,60319.0,0.143713]
[1723403166385,1.11952372,60320.0,60319.0,0.143713]
[1723403167226,1.06999496,60320.0,60319.0,0.143713]
[1723403168241,1.1442881,60320.0,60319.0,0.143713]
[1723403169494,1.14436374,60320.0,60319.0,0.143713]
[1723403169698,1.06999496,60320.0,60319.0,0.143713]
[1723403170553,1.16919082,60320.0,60319.0,0.143713]
[1723403170763,1.06999496,60320.0,60319.0,0.143713]
[1723403171295,1.19399103,60320.0,60319.0,0.143713]
[1723403172322,1.03632807,60320.0,60319.0,0.141713]
[1723403172523,1.17622853,60320.0,60319.0,0.142713]
[1723403172725,1.18622853,60320.0,60319.0,0.143713]
[1723403173174,1.06223246,60320.0,60319.0,0.143713]
[1723403173786,1.18625989,60320.0,60319.0,0.142713]
[1723403174003,1.17425989,60320.0,60319.0,0.142713]
[1723403174449,1.16425989,60320.0,60319.0,0.141713]
[1723403174847,1.04723246,60320.0,60319.0,0.142713]
[1723403175252,1.1712592,60320.0,60319.0,0.142713]
[1723403175906,1.17935244,60320.0,60319.0,0.143713]
[1723403176113,1.13125764,60320.0,60319.0,0.143713]
[1723403176316,1.1356359,60320.0,60319.0,0.143713]
[1723403176926,1.1857548,60320.0,60319.0,0.143713]
[1723403179512,1.18625473,60320.0,60319.0,0.143713]
[1723403180858,1.10635473,60320.0,60319.0,0.143713]
[1723403181096,1.23038084,60320.0,60319.0,0.143713]
[1723403181311,1.26008079,60320.0,60319.0,0.143713]
[1723403182841,1.18018079,60320.0,60319.0,0.143713]
[1723403183079,1.13125811,60320.0,60319.0,0.143713]
[1723403183290,1.25926036,60320.0,60319.0,0.143713]
[1723403183716,1.25926016,60320.0,60319.0,0.143713]
[1723403184595,0.17095972,60320.0,60319.0,0.88777492]
[1723403184813,0.17095972,60320.0,60319.0,0.65567592]
[1723403184814,0.015,60320.0,60319.0,0.65567592]
[1723403185018,0.015,60320.0,60319.0,0.99969442]
[1723403185645,0.015,60320.0,60319.0,0.76659542]
[1723403185846,0.007,60320.0,60319.0,0.76659542]
[1723403186056,0.015,60320.0,60319.0,0.76759542]
[1723403186380,0.01477103,60320.0,60319.0,0.76759542]
[1723403186582,0.000831,60321.0,60320.0,0.348142]
[1723403186756,0.000831,60321.0,60320.0,0.76739268]
[1723403187765,0.000831,60321.0,60320.0,0.99948768]
[1723403187967,0.001831,60321.0,60320.0,1.00948768]
[1723403188180,0.000831,60321.0,60320.0,0.99948768]
[1723403188585,0.001831,60321.0,60320.0,1.00948768]
[1723403188852,0.002831,60321.0,60320.0,1.01848768]
[1723403189231,0.001831,60321.0,60320.0,1.00948768]
[1723403189440,0.001831,60321.0,60320.0,0.77739268]
[1723403189643,0.002831,60321.0,60320.0,0.67375692]
[1723403189779,0.001831,60321.0,60320.0,0.66375692]
[1723403190185,0.002831,60321.0,60320.0,0.67375692]
[1723403194176,0.002831,60321.0,60320.0,0.32561492]
[1723403194879,0.002831,60321.0,60320.0,0.44166192]
[1723403197697,0.002831,60321.0,60320.0,0.67375692]
[1723403199162,0.002831,60321.0,60320.0,0.32561492]
[1723403201183,0.002831,60321.0,60320.0,0.44166192]
[1723403206552,0.118876,60321.0,60320.0,0.32561492]
[1723403206822,0.43281346,60321.0,60320.0,0.0967]
[1723403207279,0.20072246,60321.0,60320.0,0.0967]
[1723403207676,0.118876,60321.0,60320.0,0.0967]
[1723403208095,0.350967,60321.0,60320.0,0.0967]
[1723403208449,0.350967,60321.0,60320.0,0.0976141]
[1723403209457,0.583058,60321.0,60320.0,0.0976141]
[1723403209865,0.350967,60321.0,60320.0,0.0976141]
[1723403214127,0.38289862,60321.0,60320.0,0.0976141]
[1723403214334,0.350967,60321.0,60320.0,0.0976141]
[1723403214534,0.38290744,60321.0,60320.0,0.0976141]
[1723403214937,0.350967,60321.0,60320.0,0.0976141]
[1723403215145,0.38290785,60321.0,60320.0,0.0976141]
[1723403215525,0.38289812,60321.0,60320.0,0.0976141]
[1723403216340,0.38291098,60321.0,60320.0,0.0976141]
[1723403216542,0.38291097,60321.0,60320.0,0.0976141]
[1723403218733,0.38290091,60321.0,60320.0,0.0976141]
[1723403220525,0.118876,60321.0,60320.0,0.0976141]
[1723403221161,0.118876,60321.0,60320.0,0.43847602]
[1723403221162,0.002831,60321.0,60320.0,0.43847602]
[1723403221391,0.002831,60321.0,60320.0,0.98256602]
[1723403221615,0.002831,60321.0,60320.0,1.39382172]
[1723403222003,0.002831,60321.0,60320.0,1.40403912]
[1723403222437,0.001831,60321.0,60320.0,1.39603912]
[1723403222637,0.001831,60321.0,60320.0,1.39403912]
[1723403222842,0.002831,60321.0,60320.0,1.40803912]
[1723403223254,0.001831,60321.0,60320.0,1.22087842]
[1723403223387,0.001831,60321.0,60320.0,1.414396]
[1723403223598,0.001831,60321.0,60320.0,1.416396]
[1723403223810,0.001831,60321.0,60320.0,1.414396]
[1723403224017,0.001831,60321.0,60320.0,1.02336201]
[1723403224838,0.001831,60321.0,60320.0,1.0225676]
[1723403225505,0.001831,60321.0,60320.0,1.02223934]
[1723403226561,0.001831,60321.0,60320.0,1.02230456]
[1723403228315,0.001831,60321.0,60320.0,1.02213686]
[1723403231951,0.001831,60321.0,60320.0,1.02220739]
[1723403235567,0.001831,60321.0,60320.0,1.02244977]
[1723403237717,0.001831,60321.0,60320.0,1.07203116]
[1723403237942,0.001831,60321.0,60320.0,1.02244977]
[1723403238771,0.001831,60321.0,60320.0,0.79035477]
[1723403239126,0.001831,60321.0,60320.0,0.78958482]
[1723403239827,0.001831,60321.0,60320.0,1.02167982]
[1723403242605,0.001831,60321.0,60320.0,0.91266602]
[1723403242769,0.001831,60321.0,60320.0,1.02151564]
[1723403245684,0.001831,60321.0,60320.0,0.78942064]
[1723403245931,0.001831,60321.0,60320.0,1.02151564]
[1723403246139,0.001831,60321.0,60320.0,0.91266602]
[1723403246543,0.001831,60321.0,60320.0,1.02156437]
[1723403246762,0.001831,60321.0,60320.0,0.91266602]
[1723403246920,0.001831,60321.0,60320.0,1.02156441]
[1723403249673,0.001831,60321.0,60320.0,0.88186441]
[1723403249988,0.001831,60321.0,60320.0,0.77296602]
[1723403250186,0.001831,60321.0,60320.0,0.88181665]
[1723403250790,0.001831,60321.0,60320.0,0.96091665]
[1723403253716,0.001831,60321.0,60320.0,0.96043383]
[1723403256134,0.001831,60321.0,60320.0,0.72833883]
[1723403257134,0.001831,60321.0,60320.0,0.7283671]
[1723403257809,0.001831,60321.0,60320.0,0.61997102]
[1723403258009,0.001831,60321.0,60320.0,0.72840077]
[1723403258975,0.067331,60321.0,60320.0,0.30115877]
[1723403259806,0.067331,60321.0,60320.0,0.28715877]
[1723403259996,0.067331,60321.0,60320.0,0.30115877]
[1723403260620,0.067331,60321.0,60320.0,0.28715877]
[1723403260953,0.067331,60321.0,60320.0,0.29315877]
[1723403261102,0.000831,60321.0,60320.0,0.39520577]
[1723403261515,0.000831,60321.0,60320.0,0.40320577]
[1723403261723,0.000831,60321.0,60320.0,0.39520577]
[1723403262100,0.000831,60321.0,60320.0,0.47890577]
[1723403262455,0.001831,60321.0,60320.0,0.47790577]
[1723403262659,0.001831,60321.0,60320.0,0.48790577]
[1723403263062,0.000831,60321.0,60320.0,0.35485877]
[1723403263338,0.001831,60321.0,60320.0,0.36085877]
[1723403263769,0.001831,60321.0,60320.0,0.47090577]
[1723403263969,0.000831,60321.0,60320.0,0.47090577]
[1723403264264,0.000831,60321.0,60320.0,0.48390577]
[1723403264464,0.000831,60321.0,60320.0,0.47590577]
[1723403264868,0.000831,60321.0,60320.0,0.48390577]
[1723403265075,0.000831,60321.0,60320.0,0.35985877]
[1723403265285,0.000831,60321.0,60320.0,0.27315877]
[1723403265495,0.000831,60321.0,60320.0,0.28015877]
[1723403265715,0.001831,60321.0,60320.0,0.28615877]
[1723403266107,0.000831,60321.0,60320.0,0.28015877]
[1723403266514,0.723358,60321.0,60320.0,0.12134385]
[1723403266757,0.83752582,60321.0,60320.0,0.0129141]
[1723403266959,1.14417472,60321.0,60320.0,0.0129141]
[1723403267167,1.24200731,60321.0,60320.0,0.0129141]
[1723403267373,1.26688228,60321.0,60320.0,0.0129141]
[1723403267779,1.39173492,60321.0,60320.0,0.0059141]
[1723403267996,1.26155863,60321.0,60320.0,0.0059141]
[1723403268198,1.53479031,60321.0,60320.0,0.0069141]
[1723403268376,1.61591716,60321.0,60320.0,0.0009141]
[1723403268629,1.68167789,60321.0,60320.0,0.0009141]
[1723403268837,1.82378619,60321.0,60320.0,0.0029141]
[1723403269045,2.36466819,60321.0,60320.0,0.0019141]
[1723403269248,2.35866819,60321.0,60320.0,0.0019141]
[1723403269452,1.86517439,60321.0,60320.0,0.0019141]
[1723403269636,1.83051228,60321.0,60320.0,0.0019141]
[1723403270054,1.82451228,60321.0,60320.0,0.0009141]
[1723403270363,1.83051228,60321.0,60320.0,0.0019141]
[1723403270997,1.83751228,60321.0,60320.0,0.0029141]
[1723403271212,1.83751228,60321.0,60320.0,0.0019141]
[1723403271567,1.83860157,60321.0,60320.0,0.0019141]
[1723403271944,1.84460157,60321.0,60320.0,0.0029141]
[1723403272155,1.86460157,60321.0,60320.0,0.0029141]
[1723403272354,1.90026794,60321.0,60320.0,0.0029141]
[1723403272881,1.90026794,60321.0,60320.0,0.0019141]
[1723403272882,1.85860157,60321.0,60320.0,0.0019141]
[1723403273242,1.85860157,60321.0,60320.0,0.0029141]
[1723403273484,1.46783537,60321.0,60320.0,0.0029141]
[1723403274088,1.45383537,60321.0,60320.0,0.0019141]
[1723403274267,1.5838367,60321.0,60320.0,0.0029141]
[1723403274466,1.5838367,60321.0,60320.0,0.0019141]
[1723403274670,1.5718367,60321.0,60320.0,0.0009141]
[1723403274843,1.5838367,60321.0,60320.0,0.0029141]
[1723403275046,1.46000503,60321.0,60320.0,0.0029141]
[1723403275226,1.57796055,60321.0,60320.0,0.0019141]
[1723403275634,1.57196055,60321.0,60320.0,0.0009141]
[1723403275848,1.57796055,60321.0,60320.0,0.0019141]
[1723403276052,1.58396055,60321.0,60320.0,0.0029141]
[1723403276254,1.74777547,60321.0,60320.0,0.0029141]
[1723403276798,1.62381995,60321.0,60320.0,0.0029141]
[1723403277154,1.74770529,60321.0,60320.0,0.0029141]
[1723403277387,1.74170529,60321.0,60320.0,0.0019141]
[1723403277784,1.73570529,60321.0,60320.0,0.0009141]
[1723403277984,1.74170529,60321.0,60320.0,0.0019141]
[1723403278187,1.62381995,60321.0,60320.0,0.0029141]
[1723403278400,1.48735492,60321.0,60320.0,0.0019141]
[1723403278598,1.6190071,60321.0,60320.0,0.0019141]
[1723403278773,1.6250071,60321.0,60320.0,0.0029141]
[1723403278979,1.62506358,60321.0,60320.0,0.0029141]
[1723403279210,1.69935227,60321.0,60320.0,0.0029141]
[1723403279630,1.78119873,60321.0,60320.0,0.0029141]
[1723403281392,2.40953948,60321.0,60320.0,0.0029141]
[1723403281595,1.295267,60312.0,60311.0,0.000913]
[1723403281752,2.19282058,60312.0,60311.0,0.000913]
[1723403281953,2.52353541,60312.0,60311.0,0.000913]
[1723403282169,2.47529168,60312.0,60311.0,0.000913]
[1723403282373,0.14607,60308.0,60307.0,0.000913]
[1723403282588,1.12653573,60308.0,60307.0,0.000913]
[1723403282791,0.116101,60292.0,60285.0,0.079813]
[1723403283132,0.801207,60292.0,60285.0,0.079813]
[1723403283359,1.03341,60292.0,60285.0,0.079813]
[1723403283931,0.95291,60292.0,60285.0,0.079813]
[1723403284902,0.95891,60292.0,60285.0,0.079813]
[1723403285985,0.87901,60292.0,60285.0,0.079813]
[1723403287265,0.87901,60292.0,60291.0,0.142613]
[1723403287266,0.354304,60292.0,60291.0,0.142613]
[1723403287438,0.354304,60292.0,60291.0,0.42253092]
[1723403287439,0.006,60292.0,60291.0,0.42253092]
[1723403287813,0.006,60292.0,60291.0,0.30642792]
[1723403288396,0.116095,60296.0,60292.0,0.0794]
[1723403288561,0.116098,60294.0,60292.0,0.0794]
[1723403288786,0.232174,60300.0,60294.0,0.0794]
[1723403288962,0.11609,60298.0,60296.0,0.0794]
[1723403289165,0.116092,60297.0,60296.0,0.0794]
[1723403291258,0.348276,60297.0,60296.0,0.0834]
[1723403291463,0.116092,60297.0,60296.0,0.0854]
[1723403293491,0.116091,60298.0,60296.0,0.0854]
[1723403293674,0.116092,60297.0,60296.0,0.0854]
[1723403293844,0.348266,60299.0,60296.0,0.0854]
[1723403294050,0.116092,60297.0,60296.0,0.0854]
[1723403294252,0.116092,60297.0,60296.0,0.0834]
[1723403294442,0.116092,60297.0,60296.0,0.0794]
[1723403294632,0.116092,60297.0,60296.0,0.0814]
[1723403294850,0.4684,60303.0,60297.0,0.1408]
[1723403295055,0.47861266,60312.0,60296.0,0.17081492]
[1723403295056,0.116077,60305.0,60301.0,0.116083]
[1723403295258,0.232142,60308.0,60302.0,0.16381492]
[1723403295457,0.116079,60304.0,60302.0,0.16381492]
[1723403296032,0.116084,60301.0,60300.0,0.075]
[1723403296254,0.348252,60301.0,60300.0,0.075]
[1723403297053,0.349252,60301.0,60300.0,0.075]
[1723403297512,0.58142,60301.0,60300.0,0.075]
[1723403297679,0.116092,60297.0,60296.0,0.1408]
[1723403298054,0.116092,60297.0,60296.0,0.075]
[1723403299185,0.11609,60298.0,60296.0,0.075]
[1723403299381,0.116092,60297.0,60296.0,0.075]
[1723403299965,0.232177,60299.0,60296.0,0.075]
[1723403300167,0.232177,60299.0,60296.0,0.078]
[1723403300388,0.116092,60297.0,60296.0,0.083]
[1723403300768,0.116092,60297.0,60296.0,0.075]
[1723403301075,0.232173,60300.0,60296.0,0.078]
[1723403301253,0.232173,60300.0,60296.0,0.079]
[1723403301451,0.11609,60298.0,60296.0,0.076]
[1723403301607,0.116092,60297.0,60296.0,0.081]
[1723403302253,0.116092,60297.0,60296.0,0.08]
[1723403303049,0.116092,60297.0,60296.0,0.075]
[1723403303629,0.116092,60297.0,60296.0,0.078]
[1723403304010,0.116092,60297.0,60296.0,0.083]
[1723403305146,0.348276,60297.0,60296.0,0.083]
[1723403306594,0.348276,60297.0,60296.0,0.08]
[1723403306969,0.348276,60297.0,60296.0,0.075]
[1723403307108,0.349276,60297.0,60296.0,0.075]
[1723403307933,0.429276,60297.0,60296.0,0.075]
[1723403308250,0.69464048,60297.0,60296.0,0.075]
[1723403308456,0.46245648,60297.0,60296.0,0.075]
[1723403309187,0.116097,60294.0,60293.0,0.0658]
[1723403309397,0.116097,60294.0,60293.0,0.1445]
[1723403309861,0.116097,60294.0,60293.0,0.0787]
[1723403309862,0.428292,60294.0,60293.0,0.0787]
[1723403310410,0.428292,60294.0,60293.0,0.0827]
[1723403310610,0.660487,60294.0,60293.0,0.004]
[1723403310864,0.69371126,60294.0,60293.0,0.004]
[1723403311100,0.92590626,60294.0,60293.0,0.004]
[1723403311611,0.9259059,60294.0,60293.0,0.004]
[1723403312932,0.9259059,60294.0,60293.0,0.006]
[1723403313360,0.6937109,60294.0,60293.0,0.006]
[1723403315577,0.803087,60294.0,60293.0,0.006]
[1723403315799,1.06841853,60294.0,60293.0,0.006]
[1723403316001,1.06841853,60294.0,60293.0,0.004]
[1723403316438,0.580507,60292.0,60291.0,0.000913]
[1723403316567,0.61364353,60292.0,60291.0,0.000913]
[1723403318044,0.61864353,60292.0,60291.0,0.000913]
[1723403318836,0.62164353,60292.0,60291.0,0.000913]
[1723403319009,0.61664353,60292.0,60291.0,0.000913]
[1723403319421,0.62170077,60292.0,60291.0,0.000913]
[1723403319623,0.61870077,60292.0,60291.0,0.000913]
[1723403320083,0.62170077,60292.0,60291.0,0.000913]